[Event "FRA-ch Teams Top 16-B 2022"]
[Site "Chartres"]
[Date "2022.06.12"]
[Round "4.12"]
[White "Buscara, Sevan"]
[Black "Libiszewski, Fabien"]
[Result "1/2-1/2"]
[ECO "E70"]
[WhiteElo "2385"]
[BlackElo "2514"]
[Annotator "TA"]
[PlyCount "48"]
[EventDate "2022.06.09"]
[EventType "team-tourn"]
[EventCountry "FRA"]
[SourceTitle "playchess.com"]
[Source "ChessBase"]
[SourceQuality "1"]
[TimeControl "40/5400+30:1800+30"]

{[%evp 16,48,31,25,27,30,31,31,31,31,31,32,43,27,85,85,87,89,85,90,97,0,0,0,0,0,10,0,0,0,10,0,0,17,27]} 1. d4 {[%emt 0:00:04]} Nf6 {[%emt 0:00:19]} 2. c4 {[%emt 0:00:06]} g6 {[%emt 0:02:32]} 3. Nc3 {[%emt 0:00:13]} Bg7 {[%emt 0:00:20]} 4. e4 {[%emt 0:00:06]} d6 {[%emt 0:00:13]} 5. Bd3 {[%emt 0:00:13]} O-O {[%emt 0:04:58]} 6. Nge2 {[%emt 0:06:57]} Nc6 {[%emt 0:00:26]} 7. O-O {[%emt 0:00:23]} Nh5 {[%emt 0:02:30]} 8. Be3 {[%emt 0:04:18]} e5 {[%emt 0:01:19]} 9. d5 {[%emt 0:00:18]} Nd4 {[%emt 0:00:40] E70: King's Indian: Miscellaneous lines with 4 e4, including 5 Nge2 and 5 Bd3 0-0 6 Nge2.} 10. Nb5 {[%emt 0:00:30]} Nxe2+ {[%emt 0:04:28]} 11. Bxe2 {[%emt 0:03:10]} a6 {[%emt 0:19:36] White is slightly better.} 12. Nc3 {[%emt 0:05:09]} Nf4 {[%emt 0:00:19]} 13. Bf3 {[%emt 0:06:00] [#]} f5 $146 {[%emt 0:03:52]} ({Predecessor:} 13... b6 14. b4 a5 15. a3 f5 16. Qb3 Qh4 17. Kh1 axb4 18. axb4 Rxa1 19. Rxa1 Nh5 {0-1 (43) Stanisz,P (2099)-Brown,T (2060) England 2017}) 14. exf5 {[%emt 0:04:30]} gxf5 {[%emt 0:02:44]} (14... Bxf5 $11 15. Ne4 Qh4) 15. Bxf4 $16 {[%emt 0:03:59]} exf4 {[%emt 0:00:04]} 16. Qd2 {[%emt 0:00:18]} Qh4 {[%emt 0:13:56]} 17. Ne2 {[%emt 0:01:47]} Be5 {[%emt 0:00:34]} 18. g3 {[%emt 0:02:35]} ({White should play} 18. Nc1 $16) 18... fxg3 $11 {[%emt 0:01:07] The position is equal.} 19. fxg3 {[%emt 0:01:01]} Qf6 {[%emt 0:03:15]} 20. Rab1 {[%emt 0:01:49]} Bd7 {[%emt 0:00:47]} 21. b4 {[%emt 0:05:08]} Kh8 {[%emt 0:02:59]} 22. Rb3 {[%emt 0:03:09]} b6 {[%emt 0:08:59]} 23. Kh1 {[%emt 0:01:16]} a5 {[%emt 0:00:24]} 24. b5 {[%emt 0:00:48]} Rae8 {[%emt 0:02:34] Weighted Error Value: White=0.08 (flawless) /Black=0.09 (flawless)} 1/2-1/2

[Event "FRA-ch Teams Top 16-B 2022"]
[Site "Chartres"]
[Date "2022.06.12"]
[Round "4.13"]
[White "Kosteniuk, Alexandra"]
[Black "Brailly-Vignal, Bastien"]
[Result "1-0"]
[ECO "B23"]
[WhiteElo "2513"]
[BlackElo "2372"]
[Annotator "TA"]
[PlyCount "109"]
[EventDate "2022.06.09"]
[EventType "team-tourn"]
[EventCountry "FRA"]
[SourceTitle "playchess.com"]
[Source "ChessBase"]
[SourceQuality "1"]
[TimeControl "40/5400+30:1800+30"]

{[%evp 9,109,3,9,1,2,-22,0,-12,20,34,33,4,11,10,9,11,13,11,38,20,27,0,160,149,153,163,150,102,120,140,138,73,102,77,130,110,112,110,124,95,89,89,93,85,95,89,87,80,122,119,150,150,154,140,129,123,116,125,183,125,139,141,152,125,118,110,112,115,108,83,98,90,213,205,245,244,233,143,193,196,345,327,380,358,371,370,430,412,379,374,403,371,371,363,720,713,750,635,628,612,549,524]} 1. e4 {[%emt 0:00:03]} c5 {[%emt 0:00:10]} 2. Nc3 {[%emt 0:00:06]} d6 {[%emt 0:00:34]} 3. f4 {[%emt 0:00:37]} Nc6 {[%emt 0:01:53]} 4. Nf3 {[%emt 0:00:43]} g6 {[%emt 0:01:55]} 5. Bb5 {[%emt 0:02:10]} Bd7 {[%emt 0:01:25]} 6. d3 {[%emt 0:06:57] B23: Closed Sicilian: Lines without g3.} Bg7 {[%emt 0:02:19]} 7. Bc4 {[%emt 0:04:07]} e6 {[%emt 0:12:45]} 8. f5 {[%emt 0:00:47] The position is equal.} Nd4 {[%emt 0:04:39] [#] Prevents Nb5.} 9. fxe6 $146 {[%emt 0:09:46]} ({Predecessor:} 9. O-O gxf5 10. Ng5 b5 11. Nxf7 Qe7 12. Nxh8 O-O-O 13. Nf7 Qxf7 14. Bb3 Bc6 15. Ne2 {1-0 (23) Farrand,T (2256)-Roos,D (1967) Ghent 2010}) 9... fxe6 {[%emt 0:01:53]} 10. Nxd4 {[%emt 0:01:49]} (10. O-O $5 {[%cal Re4e5]}) 10... cxd4 {[%emt 0:02:05]} 11. Ne2 {[%emt 0:00:17]} Qh4+ {[%emt 0:08:25]} 12. g3 {[%emt 0:01:49]} Qh5 {[%emt 0:01:25]} 13. Qd2 {[%emt 0:01:57]} b5 {[%emt 0:21:20]} 14. Bb3 {[%emt 0:00:37]} Nh6 {[%emt 0:00:59]} 15. O-O {[%emt 0:06:57]} (15. Nf4 $5 {[%cal Rf4h5]} Qe5 16. Qa5 $14) 15... Ng4 $2 {[%emt 0:04:31]} (15... e5 $1 $11) 16. Nf4 $1 $36 {[%emt 0:00:18][%csl LRe6,LRh5][%mdl 2048] Keeping Black busy.} Qe5 {[%emt 0:00:35]} 17. Qe2 {[%emt 0:03:26] Against Ne3} Nf6 {[%emt 0:02:20]} 18. c3 {[%emt 0:02:52]} ({White should play} 18. Rf2) 18... O-O {[%emt 0:04:15]} 19. cxd4 {[%emt 0:04:51]} Qxd4+ {[%emt 0:00:07]} 20. Be3 {[%emt 0:00:06]} (20. Rf2 $142) 20... Qe5 {[%emt 0:00:29]} 21. Rac1 {[%emt 0:00:19] And now Rc7 would win.} Rac8 {[%emt 0:04:54] Inhibits Rc7.} ({Better is} 21... Kh8) 22. Rxc8 {[%emt 0:02:42] White is more active.} Rxc8 {[%emt 0:00:25]} 23. Bxa7 {[%emt 0:00:15][%cal Of4e6] [#] Threatens to win with Nxe6!} d5 {[%emt 0:06:37]} 24. exd5 {[%emt 0:08:24]} Qxe2 {[%emt 0:00:51]} 25. Nxe2 {[%emt 0:00:04]} Nxd5 {[%emt 0:00:21]} 26. Bd4 {[%emt 0:00:24]} Nb4 {[%emt 0:01:52]} 27. Bxg7 {[%emt 0:00:42]} Kxg7 {[%emt 0:00:04]} 28. d4 {[%emt 0:01:17]} Rc6 {[%emt 0:07:40]} 29. Rd1 {[%emt 0:06:12] Prevents Nd3.} Rd6 {[%emt 0:01:02]} 30. Nc3 {[%emt 0:00:11]} Bc6 {[%emt 0:01:19]} 31. a3 {[%emt 0:00:15]} Na6 {[%emt 0:00:28]} 32. Kf2 {[%emt 0:03:48]} b4 {[%emt 0:01:02]} 33. Ne2 {[%emt 0:01:12]} Kf6 {[%emt 0:03:30]} (33... Bd5 $16) 34. Rc1 {[%emt 0:06:16]} (34. a4 $18) 34... bxa3 {[%emt 0:00:36]} 35. bxa3 {[%emt 0:00:05]} Bd5 {[%emt 0:00:56]} 36. Bxd5 {[%emt 0:05:56]} Rxd5 {[%emt 0:00:13][%mdl 4096] Endgame KRN-KRN} 37. Rc4 {[%emt 0:00:10]} Ke7 {[%emt 0:01:27]} 38. Nc3 {[%emt 0:00:47]} Rf5+ {[%emt 0:00:37]} 39. Ke2 {[%emt 0:03:15]} Rh5 {[%emt 0:00:13]} 40. h4 {[%emt 0:00:20][%cal Bh2h4,Bh4h5][%mdl 32]} Kd7 {[%emt 0:01:48] A mistake that costs the game.} (40... g5 $16 {might work better.}) 41. Ne4 $18 {[%emt 0:31:54]} Ra5 {[%emt 0:00:49]} 42. a4 {[%emt 0:00:00]} Ke7 {[%emt 0:09:02]} 43. Nc3 {[%emt 0:00:00]} g5 {[%emt 0:03:28]} (43... e5 $16 44. Kd3 Kd6 45. Ne4+ Ke7) 44. h5 {[%emt 0:00:00]} Rf5 {[%emt 0:01:29]} (44... g4 $142 45. h6 Kf6 46. Ne4+ Kg6) 45. Rc6 {[%emt 0:00:00]} Nb8 {[%emt 0:00:20]} 46. Rc7+ {[%emt 0:00:00]} Nd7 {[%emt 0:01:06]} 47. Ra7 {[%emt 0:00:00] Against Ra5} h6 {[%emt 0:05:23]} 48. Ne4 {[%emt 0:00:00] [#] Nc5 is the strong threat.} Kd8 {[%emt 0:00:54]} 49. Ra8+ {[%emt 0:00:00]} Ke7 {[%emt 0:00:17]} 50. Rh8 {[%emt 0:00:00] Hoping for Rh7+.} Nf8 {[%emt 0:00:41] Prevents Rh7+.} 51. Rxh6 {[%emt 0:00:00]} g4 $2 {[%emt 0:01:52]} (51... Ra5 52. Rh8 Rxa4 53. Nxg5 Ra3) 52. Rh8 {[%emt 0:00:00] White is clearly winning.} Ra5 {[%emt 0:02:00]} 53. h6 {[%emt 0:00:53]} Rxa4 {[%emt 0:00:56]} 54. h7 {[%emt 0:00:22][%cal Oh8f8] Threatening mate with Rxf8!} Ra2+ {[%emt 0:00:13]} 55. Nd2 {[%emt 0:00:41] Weighted Error Value: White=0.14 (very precise) /Black=0.25 (precise)} 1-0

[Event "FRA-ch Teams Top 16-B 2022"]
[Site "Chartres"]
[Date "2022.06.12"]
[Round "4.14"]
[White "Astolfi, Frederic"]
[Black "Delorme, Axel"]
[Result "0-1"]
[ECO "A46"]
[WhiteElo "2144"]
[BlackElo "2461"]
[Annotator "TA"]
[PlyCount "80"]
[EventDate "2022.06.09"]
[EventType "team-tourn"]
[EventCountry "FRA"]
[SourceTitle "playchess.com"]
[Source "ChessBase"]
[SourceQuality "1"]
[TimeControl "40/5400+30:1800+30"]

{[%evp 9,80,0,9,18,9,0,-4,-4,11,0,9,-2,19,0,14,18,23,-20,0,-17,0,0,27,0,0,0,0,0,0,-60,-31,-47,-12,-39,-14,-8,16,12,31,-23,-42,-40,-25,-50,-51,-55,-55,-68,-38,-40,-50,-39,-41,-66,0,-86,-91,-227,-192,-225,-192,-260,-133,-147,-157,-1289,-1259,-706,-461,-383,-327,-29993,-29994]} 1. d4 {[%emt 0:00:03]} Nf6 {[%emt 0:00:09]} 2. Nf3 {[%emt 0:00:28]} e6 {[%emt 0:00:08]} 3. Bg5 {[%emt 0:00:31][%cal Bc1g5,Bg5h4,Bh4g3][%mdl 32]} h6 {[%emt 0:00:31]} 4. Bh4 {[%emt 0:00:48]} d6 {[%emt 0:00:20]} 5. Nbd2 {[%emt 0:01:38]} g5 {[%emt 0:00:48]} 6. Bg3 {[%emt 0:00:33] A46: 1 d4 Nf6 2 Nf3 e6: Torre, London and Colle Systems.} Nh5 {[%emt 0:00:16]} 7. e3 {[%emt 0:03:11]} Bg7 {[%emt 0:00:40]} 8. Bd3 {[%emt 0:05:59] The position is equal.} Nd7 {[%emt 0:08:12][%cal Bb8d7,Bd7b6,Bb6a4][%mdl 32]} 9. c3 {[%emt 0:05:26]} Qe7 {[%emt 0:08:33]} 10. Qe2 {[%emt 0:08:05]} a6 {[%emt 0:05:25]} 11. O-O-O {[%emt 0:06:19]} b5 {[%emt 0:03:26]} 12. Nb3 {[%emt 0:15:16] [#]} Nb6 $146 {[%emt 0:10:29]} ({Predecessor:} 12... O-O 13. Nbd2 Nxg3 14. hxg3 c5 15. dxc5 Nxc5 16. Bc2 Rb8 17. Nd4 Bd7 18. Rh5 b4 {0-1 (26) Stefanova,A (2480)-Georgiev,K (2675) Recklinghausen 1998}) 13. Nfd2 {[%emt 0:02:09]} Nxg3 {[%emt 0:00:23]} 14. hxg3 {[%emt 0:00:52]} Bd7 {[%emt 0:07:46]} 15. Na5 $1 {[%emt 0:15:42]} Na4 {[%emt 0:03:21]} 16. Qf3 {[%emt 0:03:14]} d5 {[%emt 0:04:22]} 17. Ndb3 {[%emt 0:03:06]} c5 {[%emt 0:05:21]} 18. dxc5 {[%emt 0:04:11]} Nxc5 {[%emt 0:01:13]} 19. Nxc5 {[%emt 0:00:47]} (19. e4 $11) 19... Qxc5 $15 {[%emt 0:00:07]} 20. Nb3 {[%emt 0:02:32]} Qc7 {[%emt 0:00:50]} 21. Kb1 {[%emt 0:02:32]} Rb8 {[%emt 0:04:40]} 22. e4 {[%emt 0:02:19]} dxe4 {[%emt 0:08:09]} 23. Bxe4 {[%emt 0:00:44][%cal Od1d7] Rxd7! is the strong threat.} Ke7 {[%emt 0:04:54] [#]} (23... b4 $2 24. Rxd7 $1 {[%mdl 512]} Qxd7 25. Bc6 Qxc6 26. Qxc6+ $18) 24. Nd4 {[%emt 0:03:27]} (24. Nc5 $1 $14 Bc8 25. Qe3) 24... b4 $11 {[%emt 0:02:47] aiming for ...bxc3.} 25. c4 {[%emt 0:08:16]} Ba4 {[%emt 0:06:56] This bishop pair is nice.} 26. Nc6+ {[%emt 0:01:25]} Bxc6 {[%emt 0:00:36] Chess con chili.} 27. Bxc6 {[%emt 0:00:08] Black must now prevent Rd7+.} Rhd8 {[%emt 0:00:47][%cal Og5g4] Against Rd7+. Threatens to win with ...g4!} 28. Rhe1 {[%emt 0:03:04]} Rxd1+ {[%emt 0:08:41]} 29. Rxd1 {[%emt 0:00:02] Strongly threatening Rd7+.} Rd8 $40 {[%emt 0:00:30][%mdl 128] Prevents Rd7+. White needs to defend precisely.} 30. Rxd8 {[%emt 0:00:36]} Qxd8 $15 {[%emt 0:00:27][%mdl 4096] Endgame KQB-KQB} 31. Ba4 {[%emt 0:00:58]} Qd2 {[%emt 0:01:15]} ({Black should play} 31... Be5 $15 32. Qe4 (32. Qb7+ Kf6 $15) 32... Qd4 33. Qxd4 Bxd4) 32. Bc2 {[%emt 0:00:58]} (32. Qb7+ $11 {remains equal.} Kf6 33. Qf3+ Kg6 34. Qe4+ Kf6 35. Qf3+ Kg6 36. Qe4+ Kf6 37. Qf3+) 32... Bd4 $17 {[%emt 0:01:22]} 33. Qd1 {[%emt 0:00:59]} (33. a3 $17) 33... Qxf2 $19 {[%emt 0:00:11]} 34. g4 {[%emt 0:00:19]} a5 {[%emt 0:00:57]} 35. Qd3 {[%emt 0:00:12]} (35. Qf3 $142) 35... Kd6 {[%emt 0:01:28]} ({Black should try} 35... Be5 $19 36. a3 Qxg2 37. axb4 axb4) 36. Kc1 {[%emt 0:00:23]} Kc5 {[%emt 0:00:29] 0x0.001b68ae4f14dp-1022s more active pieces.} 37. b3 $2 {[%emt 0:00:30] This costs White the game.} (37. Qf3 $17) 37... Qxg2 {[%emt 0:00:38]} 38. Qe4 {[%emt 0:01:04]} Qf1+ {[%emt 0:00:23]} 39. Bd1 {[%emt 0:00:31]} Qf2 {[%emt 0:00:43][%csl Gd4][%cal Rf2b2]} 40. Bf3 $2 {[%emt 0:00:35]} (40. Qe2 $19) 40... Be3+ {[%emt 0:00:45] Weighted Error Value: White=0.63/Black=0.19 (very precise)} 0-1

[Event "FRA-ch Teams Top 16-B 2022"]
[Site "Chartres"]
[Date "2022.06.12"]
[Round "4.15"]
[White "Harutyunyan, Ruben"]
[Black "Jrade, Willis"]
[Result "1-0"]
[ECO "B41"]
[WhiteElo "2381"]
[BlackElo "2129"]
[Annotator "TA"]
[PlyCount "85"]
[EventDate "2022.06.09"]
[EventType "team-tourn"]
[EventCountry "FRA"]
[SourceTitle "playchess.com"]
[Source "ChessBase"]
[SourceQuality "1"]
[TimeControl "40/5400+30:1800+30"]

{[%evp 21,85,46,65,63,60,41,49,41,41,41,51,36,32,0,0,0,0,0,0,0,10,12,32,26,31,26,27,24,23,23,23,22,27,29,33,16,23,17,39,37,76,73,69,71,66,68,79,27,36,29,213,219,221,213,271,199,496,491,485,491,442,433,29996,29997,29997,29998]} 1. e4 {[%emt 0:00:02]} c5 {[%emt 0:00:26]} 2. Ne2 {[%emt 0:00:04]} e6 {[%emt 0:01:12]} 3. d4 {[%emt 0:00:04]} cxd4 {[%emt 0:00:42]} 4. Nxd4 {[%emt 0:00:05]} a6 {[%emt 0:00:30]} 5. c4 {[%emt 0:00:03]} Nf6 {[%emt 0:00:19]} 6. Nc3 {[%emt 0:00:04]} d6 {[%emt 0:00:54]} 7. Be2 {[%emt 0:00:06]} Be7 {[%emt 0:00:21]} 8. Be3 {[%emt 0:00:05]} O-O {[%emt 0:00:22]} 9. O-O {[%emt 0:00:04]} b6 {[%emt 0:00:52]} 10. Qd2 {[%emt 0:02:50]} Bb7 {[%emt 0:00:24]} 11. f3 {[%emt 0:00:08]} Qc7 {[%emt 0:00:24]} 12. Rfc1 $1 {[%emt 0:00:04] White is more active. 12.Rfc1 is better than 12.Rac1. B41: Sicilian: Kan Variation: 5 c4.} Rc8 {[%emt 0:00:13]} 13. a4 {[%emt 0:00:28][%cal Oa4a5]} Qd8 {[%emt 0:00:08]} 14. a5 {[%emt 0:02:44] White is slightly better.} bxa5 {[%emt 0:01:26]} 15. Nb3 {[%emt 0:08:09]} Nc6 {[%emt 0:03:21]} 16. Na4 $1 {[%emt 0:00:04] aiming for Nb6.} Nd7 {[%emt 0:00:30] [#] Against Nb6} 17. Rd1 $146 {[%emt 0:00:09]} (17. c5 {seems wilder.} dxc5 18. Nbxc5 Nxc5 19. Qxd8+ Nxd8 20. Nxc5 Bc6 21. Rxa5 Rcb8 22. Rc2) ({Predecessor:} 17. Bf1 Rab8 18. Qf2 Ba8 19. Nd4 Nce5 20. h3 Bh4 21. g3 Bf6 22. f4 Nc6 23. Bg2 {0-1 (33) Kozhuharov,S (2422)-Milanovic,D (2455) Chess.com INT 2020}) 17... Rab8 {[%emt 0:07:56]} 18. c5 {[%emt 0:08:55]} Nxc5 {[%emt 0:05:16]} 19. Nbxc5 {[%emt 0:02:02]} dxc5 {[%emt 0:01:13]} 20. Nxc5 {[%emt 0:02:10]} Qxd2 {[%emt 0:00:30]} 21. Rxd2 {[%emt 0:00:30] Hoping for Nd7.} Bxc5 {[%emt 0:00:30]} 22. Bxc5 {[%emt 0:00:30]} Rd8 {[%emt 0:10:08]} 23. Rad1 {[%emt 0:03:08]} Rxd2 {[%emt 0:00:30]} 24. Rxd2 {[%emt 0:00:30]} Rd8 {[%emt 0:00:30]} 25. Rxd8+ {[%emt 0:00:30]} Nxd8 $11 {[%emt 0:00:30][%mdl 4096] Endgame KBB-KBN} 26. Kf2 {[%emt 0:00:30]} f6 {[%emt 0:00:30]} 27. Ke3 {[%emt 0:00:30][%mdl 1024] White has compensation.} Kf7 {[%emt 0:00:30]} 28. Bc4 {[%emt 0:00:30]} g6 {[%emt 0:00:30]} 29. Kd3 {[%emt 0:00:30]} g5 {[%emt 0:32:01]} 30. Bd6 {[%emt 0:14:16]} Bc8 {[%emt 0:06:55]} 31. Kd4 {[%emt 0:04:05]} Ke8 {[%emt 0:07:47]} 32. Kc5 {[%emt 0:06:12]} Kd7 {[%emt 0:00:30] Inhibits Bc7. Threatens to win with ...Nb7+.} 33. Bg3 {[%emt 0:00:30]} Nc6 {[%emt 0:00:30]} 34. Bb3 {[%emt 0:06:40]} (34. Kb6 $16) 34... Nb4 $1 {[%emt 0:13:56]} 35. Ba4+ {[%emt 0:01:52]} Kd8 $2 {[%emt 0:00:10] A mistake that costs the game.} (35... Ke7 $1 $11) 36. Kd6 $1 $18 {[%emt 0:04:55] White threatens Bf2 and mate.} Nd3 {[%emt 0:00:31] Inhibits Bf2.} 37. b3 {[%emt 0:00:04]} h6 {[%emt 0:05:00]} 38. h4 {[%emt 0:01:17]} Nb2 $2 {[%emt 0:00:50]} (38... Bb7 {might work better.} 39. Kxe6 Nc5+ 40. Kxf6 Nxa4) 39. Bc6 $1 {[%emt 0:00:27] Intending Bf2 and mate.} Nd3 {[%emt 0:00:21] [#] Inhibits Bf2.} 40. Bh2 {[%emt 0:00:52]} Nb4 {[%emt 0:00:30] [#]} 41. Ba4 {[%emt 0:30:30] Bg1 would kill now.} gxh4 {[%emt 0:30:30]} (41... Bb7 $18 42. Bg1 Kc8 43. hxg5 hxg5) 42. Bg1 {[%emt 0:00:30][%cal Rg1b6]} Bb7 {[%emt 0:00:30]} 43. Bd7 {[%emt 0:00:30] Weighted Error Value: White=0.06 (flawless) /Black=0.39} 1-0